bitfinex-derivatives/quotes_SOLF0:USTF0_20260126
["timestamp","ask_amount","ask_price","bid_price","bid_amount"]
[1769436929035,9.37693273,123.02,122.96,5.76785885]
[1769436929434,2.05393273,123.02,122.96,13.09415885]
[1769436929825,7.3206,123.06,122.98,3.33592731]
[1769436930030,9.37453273,123.06,123.0,3.33592731]
[1769436930237,11.80646427,123.06,123.0,3.33592731]
[1769436930433,2.43193154,123.06,123.0,3.33592731]
[1769436931629,2.43193154,123.07,123.0,3.33592731]
[1769436931841,4.48586427,123.08,123.01,5.76785885]
[1769436932340,2.05393273,123.08,123.03,2.43193154]
[1769436932637,2.05393273,123.08,123.02,3.33592731]
[1769436933334,2.43193154,123.07,123.02,3.33592731]
[1769436933734,2.43193154,123.06,123.0,3.33592731]
[1769436933934,9.37413273,123.07,123.0,3.33592731]
[1769436934134,2.43193154,123.06,123.0,3.33592731]
[1769436934936,2.05393273,123.11,123.05,3.33592731]
[1769436935140,2.05393273,123.11,123.01,113.9171]
[1769436935141,2.43193154,123.13,123.06,5.76785885]
[1769436935342,4.48586427,123.14,123.06,5.76785885]
[1769436935535,4.48586427,123.14,123.07,3.33592731]
[1769436935737,2.05393273,123.14,123.07,3.33592731]
[1769436936041,2.43193154,123.1,123.04,3.33592731]
[1769436936338,113.8036,123.14,123.04,3.33592731]
[1769436936339,4.48586427,123.11,123.04,3.33592731]
[1769436936841,4.48586427,123.11,123.01,113.9171]
[1769436936842,2.43193154,123.09,123.02,3.33592731]
[1769436937441,2.43193154,123.09,123.03,3.33592731]
[1769436937941,2.43193154,123.09,123.03,5.76785885]
[1769436938338,2.43193154,123.09,123.03,3.33592731]
[1769436939743,2.43193154,123.11,123.05,3.33592731]
[1769436941343,9.74953154,123.11,123.05,3.33592731]
[1769436941549,2.43193154,123.1,123.05,3.33592731]
[1769436941750,2.43193154,123.09,123.03,3.33592731]
[1769436943547,2.4229645,123.09,123.03,3.33592731]
[1769436943943,9.7416645,123.09,123.03,3.33592731]
[1769436945943,7.3187,123.09,123.03,3.33592731]
[1769436946142,2.05393273,123.11,123.05,3.33592731]
[1769436946143,11.79489723,123.11,123.05,3.33592731]
[1769436947644,4.47689723,123.11,123.05,3.33592731]
[1769436947850,2.4229645,123.12,123.05,5.75889181]
[1769436949051,2.4229645,123.11,123.05,10.65692731]
[1769436951745,2.04602144,123.15,123.09,5.84829218]
[1769436951948,324.68,123.16,123.11,3.42532768]
[1769436952151,2.04602144,123.17,123.11,5.84829218]
[1769436952845,11.78288594,123.17,123.11,5.84829218]
[1769436953252,2.04602144,123.17,123.11,5.84829218]
[1769436953552,11.78288594,123.17,123.11,3.42532768]
[1769436953752,2.4229645,123.16,123.11,3.42532768]
[1769436954149,2.4229645,123.16,123.09,13.16679218]
[1769436955047,9.7381645,123.15,123.09,3.42532768]
[1769436955249,2.4229645,123.14,123.08,2.4229645]
[1769436955451,2.4229645,123.14,123.07,13.16759218]
[1769436955645,4.46898594,123.13,123.07,3.42532768]
[1769436957052,113.7768,123.17,123.07,3.42532768]
[1769436957250,2.4229645,123.14,123.07,5.84829218]
[1769436957857,2.4229645,123.14,123.04,113.8842]
[1769436957858,2.04602144,123.15,123.09,5.84829218]
[1769436958257,2.04602144,123.17,123.11,5.84829218]
[1769436958750,11.78288594,123.17,123.11,3.42532768]
[1769436959058,2.4229645,123.15,123.09,3.42532768]
[1769436959356,9.7381645,123.15,123.09,3.42532768]
[1769436959554,7.3152,123.15,123.09,3.42532768]
[1769436960651,7.3158,123.14,123.09,3.42532768]
[1769436961452,2.04602144,123.15,123.09,3.42532768]
[1769436961855,2.04602144,123.18,123.09,3.42532768]
[1769436962059,9.35962144,123.18,123.11,7.3172]
[1769436962259,2.04602144,123.18,123.11,7.3172]
[1769436962455,2.04602144,123.18,123.1,3.42532768]
[1769436962656,7.3139,123.17,123.1,10.74332768]
[1769436962958,2.04602144,123.17,123.07,3.42532768]
[1769436963258,7.3152,123.15,123.09,7.3186]
[1769436963957,7.3152,123.15,123.09,10.74392768]
[1769436964356,9.36122144,123.15,123.09,3.42532768]
[1769436966363,2.04602144,123.1,123.02,3.42532768]
[1769436967861,9.36402144,123.1,123.04,7.3214]
[1769436969262,9.36402144,123.1,123.03,3.42532768]
[1769436969964,2.04602144,123.1,123.01,3.42532768]
[1769436970462,2.04602144,123.1,123.02,7.3227]
[1769436970670,2.04602144,123.1,123.03,3.42532768]
[1769436971257,9.36402144,123.1,123.03,10.74712768]
[1769436975164,9.36402144,123.1,123.04,7.3216]
[1769436976670,9.36472144,123.09,123.03,3.42532768]
[1769436977074,2.04602144,123.11,123.04,7.3212]
[1769436977471,2.04602144,123.11,123.04,10.74652768]
[1769436977870,9.36382144,123.11,123.04,10.74652768]
[1769436978363,9.36382144,123.11,123.05,7.3209]
[1769436979269,7.3182,123.1,123.04,10.74692768]
[1769436979573,2.05213353,123.09,123.04,7.3216]
[1769436982273,2.05213353,123.09,123.02,3.24054087]
[1769436982570,2.42278001,123.07,123.02,3.24054087]
[1769436982980,2.42278001,123.06,123.0,3.24054087]
[1769436983471,9.74328001,123.06,123.0,3.24054087]
[1769436984973,9.74328001,123.06,122.99,9.74678001]
[1769436985183,2.05213353,123.07,122.95,458.42445619]
[1769436985184,328.89491354,123.05,122.98,3.24054087]
[1769436985871,7.3216,123.04,122.98,10.56564087]
[1769436986782,7.3222,123.03,122.98,3.24054087]
[1769436987176,9.74498001,123.03,122.96,12.98912088]
[1769436987777,7.3222,123.03,122.96,12.98912088]
[1769436987975,7.3222,123.03,122.97,12.98902088]
[1769436989582,7.3222,123.03,122.97,5.66332088]
[1769436989978,7.3228,123.02,122.96,10.56684087]
[1769436990183,9.74558001,123.02,122.96,10.56684087]
[1769436991282,7.3222,123.04,122.98,3.24054087]
[1769436991484,7.3222,123.04,122.98,5.66332088]
[1769436995787,9.74498001,123.04,122.98,3.24054087]
[1769436995987,7.3222,123.03,122.98,3.24054087]
[1769436996183,2.05213353,123.02,122.95,3.24054087]
[1769436996486,9.37493353,123.02,122.95,3.24054087]
[1769436996783,333.89493353,123.02,122.95,5.66332088]
[1769436996984,336.31771354,123.02,122.95,5.66332088]
[1769436997278,2.42278001,123.01,122.95,3.24054087]
[1769436997987,2.42278001,123.01,122.95,10.56734087]
[1769436998674,11.79831354,123.01,122.95,3.24054087]
[1769436998878,2.42278001,123.0,122.95,3.24054087]
[1769436999276,2.42278001,123.0,122.93,10.56814087]
[1769436999488,2.05213353,123.05,122.96,3.24054087]
[1769436999690,113.8517,123.09,122.96,5.66332088]
[1769436999691,324.54,123.03,122.96,5.66332088]
[1769436999984,336.33771354,123.03,122.96,10.56664087]
[1769437000191,329.01491354,123.03,122.96,10.56664087]
[1769437000783,4.47491354,123.02,122.96,3.24054087]
[1769437001090,4.47491354,123.02,122.84,436.7916]
[1769437001091,9.74688001,123.0,122.93,7.3276]
[1769437001286,2.42278001,123.0,122.93,2.42278001]
[1769437001586,3.55187219,123.02,122.93,113.9925]
[1769437001790,3.55187219,123.02,122.92,113.9995]
[1769437001993,3.55187219,123.0,122.89,119.59569446]
[1769437002887,7.3246,122.99,122.92,10.56924087]
[1769437004182,3.55187219,123.0,122.93,3.24054087]
[1769437005894,10.87587219,123.0,122.93,10.56864087]
[1769437008494,10.87587219,123.0,122.94,7.3275]
[1769437011290,10.87587219,123.0,122.94,10.83685085]
[1769437011795,10.87587219,123.0,122.94,7.3275]
[1769437011796,3.4821918,122.99,122.94,7.3275]
[1769437012489,3.4821918,122.99,122.93,3.50935085]
[1769437012490,3.4821918,122.99,122.95,7.327]
[1769437012694,10.8055918,123.01,122.95,7.327]
[1769437013495,3.4821918,123.01,122.96,7.3261]
[1769437013691,3.4821918,123.03,122.96,3.50935085]
[1769437014994,10.8043918,123.03,122.97,7.3257]
[1769437017086,3.4821918,123.03,122.98,7.3251]
[1769437017287,3.4821918,123.03,122.97,3.50935085]
[1769437019000,10.8043918,123.03,122.97,10.83505085]
[1769437020397,7.3228,123.02,122.97,3.50935085]
[1769437020703,3.4821918,123.01,122.96,7.3263]
[1769437022706,113.8767,123.06,122.96,7.3263]
[1769437022707,3.4821918,123.03,122.97,9.75165589]
[1769437023904,10.8044918,123.03,122.97,9.75165589]
[1769437024791,7.3232,123.02,122.97,2.42595589]
[1769437026102,10.8053918,123.02,122.96,10.83565085]
[1769437026305,10.8055918,123.01,122.95,9.75285589]
[1769437027204,10.8055918,123.01,122.95,13.26220674]
[1769437027906,3.4821918,123.01,122.96,7.3263]
[1769437028095,3.4821918,123.01,122.96,9.75225589]
[1769437028301,7.3228,123.02,122.96,13.26160674]
[1769437029107,10.8049918,123.02,122.96,13.26160674]
[1769437031502,10.8049918,123.02,122.96,10.83565085]
[1769437032908,13.23094769,123.02,122.96,3.50935085]
[1769437033406,7.3234,123.01,122.96,3.50935085]
[1769437035711,7.3234,123.01,122.95,9.75285589]
[1769437035712,3.4821918,123.0,122.92,15.17596397]
[1769437035900,3.4821918,122.96,122.91,3.50935085]
[1769437036611,3.4821918,122.96,122.91,5.93530674]
[1769437036805,3.4821918,122.96,122.91,10.83855085]
[1769437037602,3.4821918,122.96,122.91,3.50935085]
[1769437038008,2.42595589,122.94,122.88,3.50935085]
[1769437038512,5.96825825,122.95,122.88,3.50935085]
[1769437038705,13.29545825,122.95,122.88,10.84045085]
[1769437040403,3.54230236,122.95,122.89,13.19241384]
[1769437040713,13.2134692,122.97,122.9,5.86191384]
[1769437040906,10.78751331,122.97,122.9,5.86191384]
[1769437041103,3.46121331,122.97,122.91,5.86191384]
[1769437042019,3.46121331,122.97,122.92,2.42595589]
[1769437042408,3.46121331,122.97,122.92,13.19061384]
[1769437044010,10.78581331,122.99,122.92,13.19061384]
[1769437044210,3.46121331,122.96,122.89,10.76585795]
[1769437044514,5.8871692,122.95,122.89,3.43595795]
[1769437044715,3.46121331,122.95,122.89,3.43595795]
[1769437045917,10.78831331,122.95,122.89,3.43595795]
[1769437046309,10.78831331,122.95,122.89,5.86191384]
[1769437046814,10.78881331,122.94,122.87,5.86191384]
[1769437047911,3.46121331,122.94,122.88,5.86191384]
[1769437048215,3.46121331,122.94,122.87,13.19361384]
[1769437048808,3.46121331,122.94,122.88,2.42595589]
[1769437049008,10.78881331,122.94,122.88,2.42595589]
[1769437050014,7.3305,122.89,122.82,3.43595795]
[1769437050316,3.46121331,122.9,122.83,2.42595589]
[1769437050715,3.46121331,122.9,122.83,5.86191384]
[1769437051911,7.3306,122.89,122.83,5.86191384]
[1769437052316,10.79181331,122.89,122.83,5.86191384]
[1769437053914,10.79251331,122.88,122.83,2.42595589]
[1769437054119,2.42595589,122.9,122.81,5.86191384]
[1769437054120,3.46121331,122.87,122.81,5.86191384]
[1769437055014,10.79321331,122.87,122.81,5.86191384]
[1769437055812,10.79321331,122.87,122.81,3.43595795]
[1769437056713,10.79321331,122.87,122.81,5.86191384]
[1769437057209,3.46121331,122.87,122.81,13.19711384]
[1769437060116,10.79301331,122.87,122.81,13.19711384]
[1769437060419,10.79301331,122.87,122.81,5.86191384]
[1769437062122,3.46121331,122.87,122.81,5.86191384]
[1769437062417,3.46121331,122.87,122.82,7.3347]
[1769437062623,10.79181331,122.89,122.83,2.42595589]
[1769437064723,3.46121331,122.88,122.82,13.19661384]
[1769437064920,3.46121331,122.88,122.83,2.42595589]
[1769437065116,3.46121331,122.88,122.82,13.19661384]
[1769437065515,3.46121331,122.88,122.82,13.20157248]
[1769437071121,3.46121331,122.88,122.83,9.76501453]
[1769437071824,3.46121331,122.88,122.83,13.1789542]
[1769437072127,3.5422468,122.91,122.85,5.8448542]
[1769437072327,3.5422468,122.93,122.87,2.43091453]
[1769437073222,3.5422468,122.95,122.88,3.41393967]
[1769437073427,3.5422468,122.95,122.88,5.8448542]
[1769437074319,5.97316133,122.95,122.88,5.8448542]
[1769437074928,7.3277,122.94,122.88,5.8448542]
[1769437075129,3.5422468,122.94,122.88,3.41393967]
[1769437075323,5.97316133,122.94,122.88,3.41393967]
[1769437075526,3.5422468,122.93,122.87,9.76221453]
[1769437075831,10.8704468,122.93,122.87,9.76221453]
[1769437077624,3.5422468,122.96,122.89,5.8448542]
[1769437079032,7.327,122.95,122.89,5.8448542]
[1769437079223,7.327,122.95,122.9,2.43091453]
[1769437079830,10.8690468,122.96,122.89,3.41393967]
[1769437080031,10.8690468,122.96,122.9,5.8448542]
[1769437080330,3.5422468,122.96,122.92,2.43091453]
[1769437080530,3.5422468,122.98,122.92,2.43091453]
[1769437080829,3.5422468,122.98,122.93,2.43091453]
[1769437081331,10.8674468,122.98,122.93,2.43091453]
[1769437081631,10.8674468,122.98,122.92,2.43091453]
[1769437085027,10.8674468,122.98,122.93,2.43091453]
[1769437087734,10.8674468,122.98,122.92,5.8448542]
[1769437088338,3.5422468,122.96,122.92,2.43091453]
[1769437089138,3.5422468,122.96,122.91,2.43091453]
[1769437090930,3.5422468,122.96,122.9,10.74323967]
[1769437090931,3.5422468,122.96,122.9,13.1741542]
[1769437093138,3.5422468,122.96,122.91,2.43091453]
[1769437093632,10.8673468,122.99,122.93,2.43091453]
[1769437093937,3.5422468,122.99,122.93,5.8448542]
[1769437095033,10.8668468,122.99,122.94,2.43091453]
[1769437095732,10.8668468,122.99,122.93,3.41393967]
[1769437095733,10.8668468,122.99,122.93,5.8448542]
[1769437096037,10.8668468,122.99,122.94,3.41393967]
[1769437098142,324.8,123.0,122.94,5.8448542]
[1769437099139,332.1241,123.0,122.94,5.8448542]
[1769437099443,324.8,123.0,122.96,5.88067422]
[1769437099642,3.40863312,123.01,122.96,5.88067422]
[1769437099843,3.40863312,123.01,122.95,7.3269]
[1769437099844,3.40863312,123.01,122.95,13.20757422]
[1769437101845,3.40863312,123.01,122.96,2.43091453]
[1769437102249,324.76,123.02,122.97,5.88067422]
[1769437102950,324.76,123.02,122.98,2.43091453]
[1769437105248,3.39430976,123.03,122.99,2.43091453]
[1769437105454,3.39430976,123.03,122.98,5.88067422]
[1769437106050,10.71660976,123.03,122.97,7.3252]
[1769437106254,3.39430976,123.02,122.97,7.3252]
[1769437107248,3.39430976,123.02,122.96,13.20697422]
[1769437107462,5.82522429,123.02,122.96,3.44975969]
[1769437109047,7.3234,123.01,122.96,3.44975969]
[1769437110857,9.75431453,123.01,122.96,3.44975969]
[1769437111659,7.3234,123.01,122.96,3.44975969]
[1769437111858,5.82522429,122.97,122.91,10.77855969]
[1769437112159,2.43091453,122.96,122.91,10.77855969]
[1769437112765,3.39430976,122.97,122.91,10.77855969]
[1769437112766,13.15132429,122.97,122.91,3.44975969]
[1769437122674,13.15132429,122.97,122.91,10.77905969]
[1769437122974,13.15182429,122.96,122.91,3.44975969]
[1769437123277,417.4811,122.99,122.86,129.22656397]
[1769437123278,5.82522429,122.95,122.89,3.44975969]
[1769437125073,13.15222429,122.95,122.89,10.78005969]
[1769437125268,5.82522429,122.94,122.87,5.88067422]
[1769437125467,2.43091453,122.93,122.87,3.44975969]
[1769437126175,13.15352429,122.93,122.87,3.44975969]
[1769437127168,9.75971453,122.92,122.87,3.44975969]
[1769437127569,13.15264536,122.92,122.87,3.44975969]
[1769437127974,3.39430976,122.91,122.86,7.3318]
[1769437128175,10.72370976,122.91,122.85,5.87929529]
[1769437128369,13.15324536,122.91,122.85,3.44975969]
[1769437128972,5.95004926,122.89,122.83,3.55318825]
[1769437129278,3.52051366,122.89,122.84,3.55318825]
[1769437129880,3.52051366,122.89,122.84,10.88668825]
[1769437130280,3.52051366,122.89,122.84,13.31622385]
[1769437130573,3.52051366,122.91,122.85,9.7623356]
[1769437130779,3.52051366,122.91,122.85,13.31552385]
[1769437131180,113.9871,122.94,122.86,10.88538825]
[1769437131181,5.95004926,122.93,122.86,10.88538825]
[1769437131877,13.27814926,122.93,122.86,10.88538825]
[1769437132073,5.95004926,122.91,122.84,13.31582385]
[1769437132375,5.95004926,122.91,122.85,3.55318825]
[1769437132875,3.52051366,122.9,122.85,10.88598825]
[1769437133879,2.4295356,122.91,122.85,10.88598825]
[1769437134075,13.27884926,122.92,122.85,10.88598825]
[1769437134578,5.95004926,122.91,122.85,10.88598825]
[1769437135778,3.52051366,122.91,122.86,7.3322]
[1769437137278,3.52051366,122.91,122.82,114.0916]
[1769437137484,2.4295356,122.88,122.82,3.55318825]
[1769437138178,5.95004926,122.89,122.82,3.55318825]
[1769437138783,2.4295356,122.88,122.83,7.3341]
[1769437141675,13.28064926,122.89,122.83,7.3341]
[1769437143485,3.52051366,122.88,122.83,7.3341]
[1769437144183,5.95004926,122.9,122.84,10.88658825]
[1769437145178,13.27994926,122.9,122.84,10.88658825]
[1769437146074,13.28084926,122.89,122.83,7.3341]
[1769437147282,13.28084926,122.89,122.83,10.88728825]
[1769437148894,3.52051366,122.89,122.84,10.88658825]
[1769437149787,5.95004926,122.89,122.84,10.88658825]
[1769437149992,2.4295356,122.88,122.84,10.88658825]
[1769437150291,5.95004926,122.89,122.84,10.88658825]
[1769437150696,3.52051366,122.89,122.84,10.88658825]
[1769437151094,3.52051366,122.89,122.84,3.55318825]
[1769437152698,13.28064926,122.89,122.84,3.55318825]
[1769437152997,2.4295356,122.88,122.83,7.3336]
[1769437153197,13.28064926,122.89,122.83,7.3336]
[1769437153399,13.28064926,122.89,122.83,10.88678825]
[1769437156793,10.85111366,122.89,122.83,13.31632385]
[1769437157402,10.85111366,122.89,122.83,13.31672385]
[1769437157403,3.52051366,122.89,122.83,13.31672385]
[1769437158998,10.85121366,122.89,122.83,13.31672385]
[1769437159301,3.52051366,122.89,122.84,13.28379331]
[1769437159495,3.52051366,122.89,122.84,10.85425771]
[1769437166111,3.50878348,122.88,122.84,7.3335]
[1769437166310,3.50878348,122.88,122.83,7.3341]
[1769437168100,10.84028348,122.88,122.82,3.52075771]
[1769437168304,13.26981908,122.88,122.82,3.52075771]
[1769437168813,10.84028348,122.88,122.82,3.52075771]
[1769437169007,10.84028348,122.88,122.82,10.85535771]
[1769437169308,3.50878348,122.87,122.82,3.52075771]
[1769437169510,5.93831908,122.87,122.8,5.95029331]
[1769437169812,5.93831908,122.87,122.81,3.52075771]
[1769437170212,3.50878348,122.87,122.81,5.95029331]
[1769437170905,7.3324,122.86,122.81,5.95029331]
[1769437171106,7.3324,122.86,122.81,3.52075771]
[1769437173412,10.84058348,122.87,122.81,3.52075771]
[1769437174412,10.84108348,122.86,122.81,3.52075771]
[1769437177210,3.50878348,122.86,122.81,10.85605771]
[1769437177409,3.50878348,122.88,122.82,5.95029331]
[1769437178113,3.50878348,122.88,122.82,3.52075771]
[1769437178915,10.83998348,122.88,122.82,10.85535771]
[1769437179116,3.50878348,122.87,122.82,10.85535771]
[1769437185715,3.50878348,122.87,122.82,7.3346]
[1769437185912,3.50878348,122.85,122.8,7.3358]
[1769437186314,3.50878348,122.85,122.79,5.95029331]
[1769437186518,3.50878348,122.84,122.79,3.52075771]
[1769437187118,3.50878348,122.83,122.79,3.52075771]
[1769437188009,7.3329,122.86,122.79,13.29010873]
[1769437188215,3.50878348,122.87,122.82,2.43285102]
[1769437188417,3.50878348,122.87,122.82,5.95360873]
[1769437192618,3.50878348,122.87,122.81,7.3353]
[1769437192921,3.50535427,122.86,122.8,5.85780072]
[1769437193925,3.50535427,122.86,122.8,13.19340072]
[1769437194126,3.50535427,122.86,122.81,5.85780072]
[1769437194423,330.93820529,122.88,122.81,5.85780072]
[1769437195019,330.93820529,122.88,122.81,13.19300072]
[1769437195328,328.50535427,122.88,122.81,13.19300072]
[1769437197022,3.50535427,122.88,122.81,13.19300072]
[1769437198229,17.49261829,122.88,122.81,13.19300072]
[1769437198433,10.83655427,122.88,122.81,13.19300072]
[1769437199228,3.50535427,122.88,122.82,13.19250072]
[1769437199527,3.50535427,122.88,122.83,5.85780072]
[1769437200625,10.83655427,122.88,122.83,3.4249497]
[1769437201634,3.50535427,122.87,122.82,10.7596497]
[1769437201823,3.50535427,122.87,122.82,13.19250072]
[1769437202024,10.83595427,122.89,122.83,5.85780072]
[1769437202829,10.83595427,122.89,122.83,3.4249497]
[1769437203232,10.83595427,122.89,122.83,10.7589497]
[1769437204021,3.50535427,122.88,122.83,10.7589497]
[1769437204222,3.50535427,122.88,122.83,3.4249497]
[1769437204530,3.50535427,122.88,122.83,5.85780072]
[1769437204740,3.50535427,122.88,122.83,3.4249497]
[1769437206129,3.50535427,122.88,122.03,142.66034068]
[1769437206130,5.93820529,122.86,122.78,2.43285102]
[1769437206630,3.50535427,122.86,122.79,2.43285102]
[1769437206822,3.50535427,122.86,122.77,114.1425]
[1769437207027,3.50535427,122.86,122.8,2.43285102]
[1769437207428,10.16496373,122.88,122.81,2.43285102]
[1769437207731,3.50535427,122.88,122.81,2.43285102]
[1769437207934,3.50535427,122.88,122.82,2.43285102]
[1769437208133,3.50535427,122.88,122.82,5.85780072]
[1769437208333,7.3318,122.87,122.82,3.4249497]
[1769437208632,7.3318,122.87,122.82,5.85780072]
[1769437208936,7.3318,122.87,122.82,3.4249497]
[1769437209529,3.50535427,122.88,122.82,10.7595497]
[1769437209727,3.50535427,122.88,122.82,13.19240072]
[1769437209926,3.50535427,122.88,122.83,3.4249497]
[1769437210434,5.93820529,122.87,122.81,3.4249497]
[1769437210627,3.50535427,122.87,122.81,3.4249497]
[1769437211336,10.83705427,122.87,122.81,3.4249497]
[1769437211835,10.83705427,122.87,122.82,3.4249497]
[1769437212028,10.83705427,122.87,122.82,5.85780072]
[1769437213137,10.83705427,122.87,122.82,3.4249497]
[1769437217729,7.3323,122.86,122.82,3.4249497]
[1769437218342,10.83715427,122.87,122.82,3.4249497]
[1769437223234,10.83715427,122.87,122.82,5.85780072]
[1769437224232,10.83715427,122.87,122.82,3.4249497]
[1769437224432,10.83715427,122.87,122.82,5.85780072]
[1769437227237,10.83715427,122.87,122.82,3.4249497]
[1769437230337,3.50535427,122.87,122.82,10.7596497]
[1769437230641,3.50535427,122.87,122.82,5.85780072]
[1769437230836,13.13010586,122.9,122.84,10.83537027]
[1769437231037,3.36725484,122.89,122.84,13.26822129]
[1769437231237,3.36725484,122.89,122.84,10.83537027]
[1769437235641,3.36725484,122.93,122.87,5.93492129]
[1769437235847,3.36725484,122.93,122.88,3.50207027]
[1769437236443,3.36725484,122.93,122.88,10.83267027]
[1769437236648,3.36725484,122.93,122.88,3.50207027]
[1769437236848,5.80010586,122.93,122.88,3.50207027]
[1769437238048,13.12830586,122.93,122.88,3.50207027]
[1769437238350,10.69545484,122.93,122.88,3.50207027]
[1769437240446,2.43285102,122.94,122.83,3.50207027]
[1769437240447,3.36725484,122.89,122.83,3.50207027]
[1769437240847,3.36725484,122.89,122.83,5.93492129]
[1769437241047,5.80010586,122.89,122.83,10.83597027]
[1769437241249,3.36725484,122.89,122.83,10.83597027]
[1769437241448,3.36725484,122.89,122.83,13.26882129]
[1769437242750,3.36725484,122.89,122.84,3.50207027]
[1769437242953,13.12950586,122.91,122.84,3.50207027]
[1769437244057,10.69665484,122.91,122.84,5.93492129]
[1769437244258,13.12950586,122.91,122.84,5.93492129]
[1769437244459,3.36725484,122.9,122.84,5.93492129]
[1769437244659,3.36725484,122.9,122.84,3.50207027]
[1769437246163,5.80010586,122.89,122.83,3.50207027]
[1769437247058,13.13070586,122.89,122.83,3.50207027]
[1769437247561,2.43285102,122.9,122.84,3.50207027]
[1769437247760,3.36725484,122.91,122.86,3.50207027]
[1769437248363,3.36725484,122.91,122.86,5.93492129]
[1769437248953,3.36725484,122.91,122.86,13.26712129]
[1769437249153,5.67222755,122.89,122.82,18.68170419]
[1769437249359,5.67222755,122.89,122.83,3.50574022]
[1769437249661,5.67222755,122.89,122.81,252.01786397]
[1769437249662,3.23937653,122.89,122.84,13.26919101]
[1769437250664,12.99872732,122.91,122.84,13.26919101]
[1769437251265,10.56877653,122.91,122.85,2.42995079]
[1769437252770,10.56877653,122.91,122.85,13.26859101]
[1769437256677,3.23937653,122.91,122.86,5.93569101]
[1769437257172,3.23937653,122.93,122.87,3.50574022]
[1769437257373,3.23937653,122.93,122.87,5.93569101]
[1769437257780,3.23937653,122.93,122.87,3.50574022]
[1769437258884,10.56747653,122.93,122.87,10.83734022]
[1769437259286,10.56747653,122.93,122.87,13.26729101]
[1769437259783,10.56747653,122.93,122.87,10.83734022]
[1769437259983,10.56747653,122.93,122.87,13.26729101]
[1769437260778,7.3289,122.92,122.87,3.50574022]
[1769437262682,7.3289,122.92,122.87,5.93569101]
[1769437269100,10.56757653,122.93,122.88,2.42995079]
[1769437269999,10.56757653,122.93,122.87,5.93569101]
[1769437270194,3.23937653,122.91,122.86,2.42995079]
[1769437270994,3.23937653,122.91,122.86,5.93569101]
[1769437272685,3.23937653,122.91,122.86,13.26799101]
[1769437274000,10.56877653,122.91,122.86,5.93569101]
[1769437274301,10.56877653,122.91,122.86,3.50574022]
[1769437276103,10.56877653,122.91,122.86,5.93569101]
[1769437276398,10.56797653,122.93,122.87,5.93569101]
[1769437279498,10.85642598,122.95,122.89,5.93431124]
[1769437280795,10.85642598,122.95,122.89,13.26461124]
[1769437280995,10.85642598,122.95,122.9,2.42995079]
[1769437282993,10.85642598,122.95,122.91,2.42995079]
[1769437282994,3.52892598,122.95,122.91,2.42995079]
[1769437283194,3.52892598,122.95,122.9,13.26421124]
[1769437283404,3.52892598,122.95,122.91,2.42995079]
[1769437284500,3.52892598,122.97,122.91,9.75915079]
[1769437284694,3.52892598,122.97,122.91,13.26351124]
[1769437285200,10.85542598,122.96,122.91,3.50436045]
[1769437286403,3.52892598,122.94,122.89,5.93431124]
[1769437288393,3.52892598,122.94,122.9,2.42995079]
[1769437289302,10.85532598,122.96,122.91,2.42995079]
[1769437290106,3.52892598,122.96,122.92,2.42995079]
[1769437291307,3.52892598,122.96,122.91,13.26351124]
[1769437291804,3.52892598,122.96,122.92,2.42995079]
[1769437292709,3.52892598,122.96,122.91,13.26351124]
[1769437295109,7.3258,122.97,122.92,3.50436045]
[1769437295608,10.85472598,122.97,122.92,3.50436045]
[1769437295805,3.52892598,122.97,122.92,10.83296045]
[1769437296006,3.52892598,122.97,122.92,5.93431124]
[1769437296606,10.85352598,122.99,122.93,13.26231124]
[1769437297303,10.85352598,122.99,122.94,9.75745079]
[1769437297506,3.52892598,122.99,122.94,5.93431124]
[1769437297707,10.85272598,123.01,122.95,13.26111124]
[1769437297909,10.85272598,123.01,122.96,2.42995079]
[1769437298308,10.85272598,123.01,122.95,13.26111124]
[1769437298612,10.85272598,123.01,122.96,2.42995079]
[1769437299309,3.52892598,123.01,122.97,2.42995079]
[1769437299517,3.52892598,123.03,122.98,2.42995079]
[1769437299816,3.52892598,123.03,122.97,5.93431124]
[1769437300913,3.52892598,123.03,122.94,113.9807]
[1769437300914,3.52892598,123.01,122.95,3.50436045]
[1769437301113,3.52892598,123.01,122.96,5.93431124]
[1769437301315,3.52892598,123.03,122.97,5.93431124]
[1769437302007,3.52892598,123.03,122.97,13.26001124]
[1769437303218,3.52892598,123.03,122.97,7.3257]
[1769437303613,5.95887677,123.03,122.97,7.3257]
[1769437303815,5.95887677,123.02,122.96,10.83066045]
[1769437304013,3.52892598,123.02,122.96,13.26061124]
[1769437308019,3.52892598,123.02,122.97,2.42995079]
[1769437308219,3.52892598,123.02,122.96,13.26061124]
[1769437309725,3.52892598,123.02,122.93,239.7914]
[1769437309726,3.27712274,122.99,122.93,3.49925596]
[1769437309914,5.70230404,122.99,122.93,3.49925596]
[1769437310219,3.27712274,123.01,122.94,5.92443726]
[1769437310922,10.60082274,123.01,122.95,7.3268]
[1769437311820,10.60082274,123.01,122.95,13.25123726]
[1769437312225,3.27712274,122.97,122.92,3.49925596]
[1769437314027,10.60292274,122.97,122.92,3.49925596]